bitfinex/quotes_ETHUSD_20250815
["timestamp","ask_amount","ask_price","bid_price","bid_amount"]
[1755235069574,0.002,4626.6,4626.2,0.55]
[1755235069795,3.287,4626.5,4626.4,0.55]
[1755235069996,3.287,4626.5,4626.4,1.4855]
[1755235070845,3.287,4626.5,4626.4,1.5935]
[1755235071004,3.287,4626.5,4626.4,1.767705]
[1755235073814,5.44846114,4626.5,4626.4,1.767705]
[1755235074637,3.287,4626.5,4626.4,1.767705]
[1755235074996,5.44846114,4626.5,4626.4,1.767705]
[1755235075231,5.44846114,4626.5,4626.4,0.108]
[1755235075396,5.44846114,4626.5,4626.1,1e-08]
[1755235075397,2.16160131,4626.2,4626.1,0.10800001]
[1755235075602,19.09366175,4626.2,4626.1,1e-08]
[1755235075947,19.66316175,4626.2,4626.1,1e-08]
[1755235076307,20.15906175,4626.2,4626.1,1e-08]
[1755235076503,19.66316175,4626.2,4626.1,1e-08]
[1755235076840,20.622923,4626.2,4626.1,1e-08]
[1755235077434,20.127023,4626.2,4626.1,1e-08]
[1755235077624,20.622923,4626.2,4626.1,1e-08]
[1755235078436,2.16183496,4625.7,4625.6,0.001]
[1755235078741,19.22891833,4625.7,4625.6,0.001]
[1755235078947,20.62315665,4625.7,4625.6,0.001]
[1755235081727,2.16202192,4625.3,4625.2,0.001]
[1755235082017,2.16225566,4624.8,4624.7,0.001]
[1755235082225,2.16225566,4624.8,4624.0,0.108]
[1755235082226,25.54248129,4624.8,4624.0,0.108]
[1755235082431,15.80759666,4624.2,4624.0,0.108]
[1755235082758,25.62326669,4624.2,4624.0,0.108]
[1755235082957,25.62326669,4624.2,4623.3,0.4964]
[1755235082958,26.86786322,4624.2,4623.3,0.4964]
[1755235083159,27.32936322,4624.2,4623.3,0.4964]
[1755235083462,27.78226322,4624.2,4623.3,0.4964]
[1755235083628,2.16314434,4622.9,4622.8,0.4964]
[1755235083833,3.287,4622.9,4622.8,0.4964]
[1755235084163,3.287,4622.9,4622.8,1.6073]
[1755235084363,13.64506044,4623.4,4622.8,1.0573]
[1755235084526,13.64506044,4623.4,4622.9,0.9493]
[1755235084527,3.287,4623.3,4622.9,0.9493]
[1755235084733,2.16314434,4622.9,4622.8,0.108]
[1755235084933,2.16340408,4622.4,4622.2,0.6044]
[1755235085244,3.288,4622.3,4622.2,0.5609]
[1755235085459,3.289,4622.3,4622.2,0.5609]
[1755235085633,3.289,4622.3,4622.2,0.108]
[1755235086004,3.289,4622.3,4622.2,0.6044]
[1755235086176,3.289,4622.3,4622.2,1.0573]
[1755235088516,3.289,4622.3,4622.2,0.108]
[1755235088973,3.289,4622.3,4621.8,0.55]
[1755235089154,3.289,4622.3,4622.0,0.108]
[1755235091258,0.108,4622.5,4622.2,0.108]
[1755235091259,2.16333153,4622.5,4622.2,0.108]
[1755235091460,0.108,4622.6,4622.1,0.55]
[1755235091659,3.288,4622.5,4622.3,0.55]
[1755235091981,3.288,4622.5,4622.4,1.0573]
[1755235092482,13.91798774,4623.1,4622.4,1.0573]
[1755235092655,3.289,4623.0,4622.4,0.5609]
[1755235092977,3.289,4623.0,4622.5,0.4964]
[1755235093177,3.289,4623.0,4622.6,0.9493]
[1755235093345,3.289,4623.0,4622.4,0.108]
[1755235093745,2.16315997,4622.9,4622.4,0.108]
[1755235093946,2.16310398,4623.0,4622.4,0.108]
[1755235094158,3.29,4622.9,4622.4,0.6044]
[1755235094364,5.45315487,4622.9,4622.4,0.6044]
[1755235094656,2.16324032,4622.7,4622.4,0.108]
[1755235094867,13.91798774,4623.1,4622.4,0.108]
[1755235094868,19.09835073,4622.6,4622.4,0.108]
[1755235095068,17.39656044,4622.6,4622.0,0.109]
[1755235095271,19.66784729,4622.6,4622.0,0.109]
[1755235095764,17.50456044,4622.6,4622.0,0.109]
[1755235096174,19.66786467,4622.6,4622.0,0.109]
[1755235096785,17.50456044,4622.6,4622.0,0.109]
[1755235097146,2.16333862,4622.5,4622.0,0.109]
[1755235097350,5.45338516,4622.4,4622.0,0.109]
[1755235097574,3.29,4622.4,4622.0,0.109]
[1755235098490,2.16342884,4622.3,4622.0,0.109]
[1755235098663,3.289,4622.2,4622.0,0.109]
[1755235099976,3.289,4622.2,4622.0,0.6054]
[1755235100377,3.289,4622.2,4622.0,0.109]
[1755235100694,5.45247868,4622.2,4622.0,0.109]
[1755235100866,3.289,4622.2,4622.0,0.109]
[1755235102318,3.289,4622.2,4622.0,0.5628]
[1755235102608,3.289,4622.2,4622.0,0.109]
[1755235103106,3.289,4622.2,4622.1,0.4538]
[1755235103487,3.289,4622.2,4622.1,0.8898]
[1755235104078,3.289,4622.2,4622.0,0.109]
[1755235104279,5.45248089,4622.2,4622.0,0.109]
[1755235104509,3.289,4622.2,4622.0,0.109]
[1755235105218,5.45247228,4622.2,4622.0,0.109]
[1755235105718,3.289,4622.2,4622.0,0.109]
[1755235105913,3.289,4622.2,4622.0,0.9988]
[1755235106213,2.27132803,4622.6,4622.0,0.109]
[1755235106214,3.289,4622.1,4622.0,0.109]
[1755235106390,0.57590041,4623.4,4622.1,0.55]
[1755235106596,2.16319113,4622.8,4622.1,1.0038]
[1755235106796,3.289,4622.9,4622.2,0.436]
[1755235107098,17.81564433,4622.9,4622.1,0.55]
[1755235107299,13.64506044,4622.4,4622.0,0.109]
[1755235107616,2.16348111,4622.2,4622.0,0.109]
[1755235108413,3.29,4622.3,4622.0,0.109]
[1755235108622,2.27134075,4622.5,4622.0,0.5628]
[1755235108623,3.29,4622.2,4622.0,0.5628]
[1755235108782,3.29,4622.2,4622.0,0.109]
[1755235109413,2.16351874,4622.1,4622.0,0.109]
[1755235109917,5.45347938,4622.2,4622.0,0.109]
[1755235110618,5.92497938,4622.2,4622.0,0.109]
[1755235110915,3.29,4622.2,4622.0,0.109]
[1755235111508,0.46352927,4622.1,4622.0,0.545]
[1755235111812,0.46352927,4622.1,4622.0,0.109]
[1755235113212,2.62704801,4622.1,4622.0,0.109]
[1755235113419,3.09854801,4622.1,4622.0,0.001]
[1755235113913,3.75252927,4622.1,4622.0,0.001]
[1755235114081,5.91604801,4622.1,4622.0,0.001]
[1755235114285,6.02404801,4622.1,4622.0,0.001]
[1755235114698,4.33202927,4622.1,4622.0,0.001]
[1755235115117,6.49554801,4622.1,4622.0,0.001]
[1755235115482,4.33202927,4622.1,4622.0,0.001]
[1755235115905,3.86052927,4622.1,4622.0,0.001]
[1755235116109,6.02404801,4622.1,4622.0,0.001]
[1755235116811,3.86052927,4622.1,4622.0,0.001]
[1755235117192,6.02404801,4622.1,4622.0,0.001]
[1755235118120,6.02519044,4622.1,4622.0,0.001]
[1755235118626,3.8616717,4622.1,4622.0,0.001]
[1755235119850,5.91719044,4622.1,4622.0,0.001]
[1755235120403,2.62819044,4622.1,4622.0,0.001]
[1755235120606,3.7536717,4622.1,4622.0,0.001]
[1755235120917,5.91719044,4622.1,4622.0,0.001]
[1755235121389,6.72015484,4622.1,4622.0,0.001]
[1755235121594,20.83671528,4622.1,4622.0,0.001]
[1755235122022,27.25785228,4622.1,4622.0,0.001]
[1755235122314,27.84005228,4622.1,4622.0,0.001]
[1755235122597,11.86103173,4622.1,4622.0,0.001]
[1755235122797,9.15732744,4622.1,4622.0,0.001]
[1755235123015,3.7546717,4622.1,4622.0,0.001]
[1755235123329,5.91819044,4622.1,4622.0,0.001]
[1755235123489,3.7546717,4622.1,4622.0,0.001]
[1755235123699,5.91819044,4622.1,4622.0,0.001]
[1755235124620,3.7546717,4622.1,4622.0,0.001]
[1755235126445,5.91819044,4622.1,4622.0,0.001]
[1755235126600,3.7546717,4622.1,4622.0,0.001]
[1755235126934,3.7546717,4622.1,4622.0,0.8908]
[1755235127138,3.7546717,4622.1,4622.0,0.9988]
[1755235127362,0.4646717,4622.1,4622.0,1.5488]
[1755235127510,0.4646717,4622.1,4622.0,3.86734555]
[1755235127511,3.7546717,4622.1,4622.0,3.86734555]
[1755235128101,3.7546717,4622.1,4622.0,1.70378]
[1755235128337,3.7546717,4622.1,4622.0,1.5488]
[1755235128520,0.4646717,4622.1,4622.0,1.5488]
[1755235128837,3.7546717,4622.1,4622.0,1.5488]
[1755235129133,0.4646717,4622.1,4622.0,1.5488]
[1755235129837,0.4646717,4622.1,4622.0,3.71236555]
[1755235130008,0.4646717,4622.1,4622.0,4.30007181]
[1755235130334,13.64506044,4622.6,4622.1,0.55]
[1755235130524,3.75363586,4622.5,4622.1,2.71350821]
[1755235130831,0.46463586,4622.4,4622.3,0.55]
[1755235131035,3.75363586,4622.4,4622.2,0.55]
[1755235131248,3.289,4622.4,4622.3,1.4398]
[1755235131449,3.75361029,4622.4,4622.3,1.4398]
[1755235131651,3.75361029,4622.4,4622.3,1.5478]
[1755235132147,0.46461029,4622.4,4622.3,1.5478]
[1755235132372,0.46461029,4623.0,4622.4,0.55]
[1755235132647,0.46461029,4622.9,4622.4,0.55]
[1755235132949,2.16309768,4623.0,4622.4,0.4786]
[1755235132950,3.75361029,4622.8,4622.4,0.4786]
[1755235133115,0.46461029,4622.7,4622.4,0.4786]
[1755235133316,3.289,4622.6,4622.4,0.4786]
[1755235133512,3.289,4622.6,4622.3,0.108]
[1755235134268,16.93406044,4622.6,4622.3,0.108]
[1755235134566,2.16351874,4622.1,4622.0,0.001]
[1755235134768,19.09757918,4622.1,4622.0,0.001]
[1755235134932,20.00497918,4622.1,4622.0,0.001]
[1755235135850,19.53367918,4622.1,4622.0,0.001]
[1755235137026,5.88861874,4622.1,4622.0,0.001]
[1755235137228,19.53367918,4622.1,4622.0,0.001]
[1755235137629,20.57689453,4622.1,4622.0,0.001]
[1755235137933,20.68489453,4622.1,4622.0,0.001]
[1755235139438,27.10603153,4622.1,4622.0,0.001]
[1755235139744,26.63473153,4622.1,4622.0,0.001]
[1755235140143,22.90963153,4622.1,4622.0,0.001]
[1755235140344,26.19863153,4622.1,4622.0,0.001]
[1755235140549,22.90963153,4622.1,4622.0,0.001]
[1755235140852,22.44571618,4622.1,4622.0,0.001]
[1755235141038,25.73471618,4622.1,4622.0,0.001]
[1755235141652,8.80065574,4622.1,4622.0,0.001]
[1755235141853,3.289,4622.1,4622.0,0.001]
[1755235142661,2.59945185,4622.5,4622.0,0.001]
[1755235142662,0.650155,4622.6,4622.0,1.4941]
[1755235142972,0.26657805,4623.1,4622.4,0.55]
[1755235143148,5.45410331,4623.0,4622.5,0.9431]
[1755235143352,5.45410331,4623.0,4622.5,0.4645]
[1755235143543,3.291,4623.0,4622.6,0.4786]
[1755235144036,5.45410391,4623.0,4622.6,0.4786]
[1755235144441,3.291,4623.0,4622.6,0.4786]
[1755235145364,3.291,4623.0,4622.7,0.4786]
[1755235145846,3.29,4622.9,4622.7,0.4645]
[1755235146047,3.29,4622.9,4622.7,0.9431]
[1755235146562,0.650055,4623.3,4622.8,1.0511]
[1755235146880,3.29,4623.2,4622.9,3.65624252]
[1755235147194,3.29,4623.2,4623.1,0.658]
[1755235147681,13.64506044,4624.4,4623.1,0.658]
[1755235147992,5.45263926,4624.0,4623.5,0.108]
[1755235148150,5.846919,4624.1,4623.6,0.55]
[1755235148350,3.29,4624.0,4623.7,0.4786]
[1755235148682,3.29,4624.0,4623.8,0.9431]
[1755235148902,3.29,4624.0,4623.6,1.0145]
[1755235149188,3.29,4624.0,4623.6,1.4931]
[1755235149413,13.64506044,4623.8,4623.6,0.55]
[1755235149681,3.289,4623.7,4623.6,0.55]
[1755235151086,13.64506044,4623.8,4623.6,0.55]
[1755235151289,3.29,4623.7,4623.6,0.55]
[1755235153956,3.29,4623.7,4622.6,0.55]
[1755235153957,3.7261,4623.7,4622.6,0.55]
[1755235154155,3.7261,4623.7,4623.3,0.108]
[1755235155073,3.29,4623.7,4623.3,0.108]
[1755235155496,5.45277567,4623.7,4623.3,0.108]
[1755235155787,3.29,4623.7,4623.3,0.108]
[1755235156086,5.88888773,4623.7,4623.3,0.108]
[1755235156452,2.16281932,4623.6,4623.3,0.108]
[1755235156652,5.45187342,4623.5,4623.3,0.108]
[1755235157000,5.88797342,4623.5,4623.3,0.108]
[1755235157194,3.7251,4623.5,4623.3,0.108]
[1755235157574,3.289,4623.5,4623.3,0.108]
[1755235158789,3.7251,4623.5,4623.3,0.108]
[1755235158990,0.02703638,4623.4,4622.8,0.55]
[1755235159293,3.288,4623.3,4623.1,0.108]
[1755235160490,3.288,4623.3,4623.1,0.5866]
[1755235161086,3.288,4623.3,4623.1,0.108]
[1755235161994,3.756,4623.3,4623.1,0.108]
[1755235162913,15.80806441,4623.2,4622.5,0.55]
[1755235163119,13.64506044,4622.8,4622.7,0.108]
[1755235163278,2.16328203,4622.7,4622.0,0.001]
[1755235163481,5.45128473,4622.6,4622.5,0.108]
[1755235163716,3.288,4622.6,4622.2,0.108]
[1755235164719,3.756,4622.6,4622.2,0.108]
[1755235165090,3.288,4622.6,4622.2,0.108]
[1755235166317,3.288,4622.6,4622.2,0.6033]
[1755235166514,3.288,4622.6,4622.2,0.108]
[1755235166885,3.756,4622.6,4622.2,0.108]
[1755235167081,3.288,4622.6,4622.3,0.55]
[1755235167615,3.288,4622.6,4622.3,1.0453]
[1755235168014,3.288,4622.6,4622.3,0.55]
[1755235168378,3.756,4622.6,4622.3,0.55]
[1755235168592,0.468,4622.5,4622.3,0.55]
[1755235168803,3.288,4622.4,4622.3,0.55]
[1755235171696,3.288,4622.4,4622.3,1.4868]
[1755235171893,16.38419657,4623.0,4622.3,1.0453]
[1755235172099,3.289,4622.9,4622.3,1.0453]
[1755235172829,5.45214761,4622.9,4622.3,1.0453]
[1755235173833,3.289,4622.9,4622.3,0.55]
[1755235174034,5.45215306,4622.9,4622.3,0.55]
[1755235174242,5.45215306,4622.9,4622.3,0.551]
[1755235174598,2.63119113,4622.8,4622.3,0.551]
[1755235174798,3.289,4622.7,4622.3,0.551]
[1755235177136,3.289,4622.6,4622.3,0.551]
[1755235177323,0.57151726,4623.3,4622.4,1.0453]
[1755235177636,3.289,4623.2,4622.6,2.8212819]
[1755235177937,3.289,4623.2,4622.6,2.82127794]
[1755235178140,3.289,4623.2,4622.6,0.658]
[1755235178502,0.108,4623.3,4622.6,0.658]
[1755235178827,3.289,4623.3,4623.2,0.658]
[1755235179216,3.289,4623.4,4623.2,3.31630301]
[1755235179533,3.289,4623.4,4623.3,0.4953]
[1755235179740,3.289,4623.4,4623.2,0.658]
[1755235180904,3.289,4623.4,4623.3,0.55]
[1755235182332,3.289,4623.4,4623.2,0.108]
[1755235182522,3.289,4623.4,4623.3,0.55]
[1755235183040,2.16310627,4623.0,4622.7,0.001]
[1755235183238,3.288,4622.9,4622.7,0.001]
[1755235183420,2.16319113,4622.8,4622.7,0.001]
[1755235183624,3.14063101,4622.8,4622.7,0.001]
[1755235183931,3.99773942,4622.8,4622.7,0.001]
[1755235184131,4.0247793,4622.8,4622.7,0.001]
[1755235184333,3.99773942,4622.8,4622.7,0.001]
[1755235185135,4.0247793,4622.8,4622.7,0.001]
[1755235185430,4.48794145,4622.8,4622.7,0.001]
[1755235185645,4.46090157,4622.8,4622.7,0.001]
[1755235186149,10.88203857,4622.8,4622.7,0.001]
[1755235187736,10.96873057,4622.8,4622.7,0.001]
[1755235191726,14.25973057,4622.8,4622.7,0.001]
[1755235193030,14.36773057,4622.8,4622.7,0.001]
[1755235196443,7.94659357,4622.8,4622.7,0.001]
[1755235196649,14.36773057,4622.8,4622.7,0.001]
[1755235197064,13.88533057,4622.8,4622.7,0.001]
[1755235198728,14.34713057,4622.8,4622.7,0.001]
[1755235202766,13.88533057,4622.8,4622.7,0.001]
[1755235202954,10.12633057,4622.8,4622.7,0.001]
[1755235203132,13.41533057,4622.8,4622.7,0.001]
[1755235203568,10.12633057,4622.8,4622.7,0.001]
[1755235203868,13.41533057,4622.8,4622.7,0.001]
[1755235208061,10.12633057,4622.8,4622.7,0.001]
[1755235208370,13.41533057,4622.8,4622.7,0.001]
[1755235210793,12.53118228,4622.8,4622.7,0.001]
[1755235210949,12.44449028,4622.8,4622.7,0.001]
[1755235213182,2.16337833,4622.4,4622.3,0.001]
[1755235213361,19.20543877,4622.4,4622.3,0.001]
[1755235213558,19.66860092,4622.4,4622.3,0.001]
[1755235213776,20.11090092,4622.4,4622.3,0.001]
[1755235214396,20.69131031,4622.4,4622.3,0.001]
[1755235214597,20.77801031,4622.4,4622.3,0.001]
[1755235215688,20.33571031,4622.4,4622.3,0.001]
[1755235216401,20.77801031,4622.4,4622.3,0.001]
[1755235217405,20.33571031,4622.4,4622.3,0.001]
[1755235219616,2.16351874,4622.1,4621.9,0.001]
[1755235219908,6.02368089,4622.1,4621.9,0.001]
[1755235220114,12.88711789,4622.1,4621.9,0.001]
[1755235221215,10.70230615,4622.1,4621.3,1e-08]
[1755235221415,13.64506044,4621.4,4618.0,2.16543003]
[1755235221580,13.64506044,4619.9,4619.1,0.9359]
[1755235221910,13.64506044,4619.4,4618.6,0.9354]
[1755235222110,9.724137,4619.3,4617.3,0.51435151]
[1755235222312,3.304,4619.2,4619.1,0.9354]
[1755235222918,14.22445255,4620.6,4619.1,0.9354]
[1755235223116,2.16442883,4620.2,4619.2,1.24554135]
[1755235223319,14.22445255,4620.6,4619.3,1.4854]
[1755235223320,9.726137,4620.1,4619.3,1.4854]
[1755235223501,11.89063916,4620.0,4619.5,0.55]
[1755235223707,3.305,4620.0,4619.6,0.9354]
[1755235223905,3.305,4620.0,4619.7,0.9354]
[1755235224088,3.305,4620.0,4619.8,0.9354]
[1755235224287,3.305,4620.0,4619.5,2.16473279]
[1755235224288,3.305,4620.0,4619.9,0.9354]
[1755235224816,16.95006044,4620.0,4619.0,0.001]
[1755235225053,2.16459863,4619.8,4619.1,0.4477]
[1755235225180,3.305,4620.0,4619.1,0.4477]
[1755235225181,9.728137,4619.7,4619.2,0.4877]
[1755235225387,3.309,4619.6,4619.3,0.4477]
[1755235225614,3.309,4619.6,4619.4,1.0377]
[1755235225813,3.309,4619.8,4619.5,0.14854]
[1755235226018,3.309,4619.8,4619.5,1.08394]
[1755235226220,3.31,4620.0,4619.7,0.55]
[1755235226428,3.31,4620.3,4619.7,0.55]
[1755235226727,3.31,4620.3,4619.0,0.002]
[1755235226728,2.16464272,4619.7,4619.6,0.4877]
[1755235226926,3.31,4619.7,4619.0,0.9374]
[1755235227123,2.16468958,4619.6,4619.0,0.9374]
[1755235227338,5.48173854,4619.5,4619.0,0.9374]
[1755235227534,3.317,4619.4,4619.0,0.002]
[1755235227745,5.48179118,4619.4,4619.1,0.9354]
[1755235228611,2.16487938,4619.2,4619.0,0.002]
[1755235228823,2.16487938,4619.2,4619.1,0.4877]
[1755235230452,2.16487938,4619.2,4618.1,0.8005]
[1755235230453,2.16508506,4618.8,4618.1,0.2505]
[1755235230612,3.317,4618.7,4618.1,0.2505]
[1755235230818,3.334,4618.6,4618.2,0.4477]
[1755235231062,5.49916907,4618.6,4618.3,0.9354]
[1755235231721,5.49916907,4618.6,4618.1,0.3585]
[1755235231722,0.2,4618.5,4618.4,0.9354]
[1755235231922,0.2,4618.5,4618.4,1.4854]
[1755235232139,0.2,4618.5,4618.4,1.5934]
[1755235233928,0.2,4618.5,4618.4,3.75865203]
[1755235234232,0.2,4618.5,4618.4,1.5934]
[1755235236963,0.2,4618.5,4618.4,0.658]
[1755235237128,0.2,4618.5,4618.1,0.2505]
[1755235237129,17.53726044,4618.5,4618.1,0.2505]
[1755235237330,18.10556044,4618.5,4618.1,0.2505]
[1755235237722,20.27077699,4618.5,4618.1,0.2505]
[1755235238959,17.75136044,4618.5,4618.1,0.2505]
[1755235239266,17.29106044,4618.5,4618.1,0.2505]
[1755235239635,3.646,4618.5,4618.1,0.2505]
[1755235239960,0.2,4618.5,4618.2,0.9354]
[1755235240258,3.337,4618.4,4618.3,0.9354]
[1755235240446,3.337,4618.4,4618.3,0.4877]
[1755235241034,3.538,4618.5,4618.3,0.4877]
[1755235241362,3.538,4618.5,4618.2,0.55]
[1755235241731,3.538,4618.5,4618.1,0.3585]
[1755235242134,3.9983,4618.5,4618.1,0.3585]
[1755235242631,0.2,4618.5,4618.4,0.55]
[1755235242832,0.2,4618.5,4618.4,3.65065203]
[1755235243064,0.2,4618.5,4618.4,0.9354]
[1755235243471,0.2,4618.5,4618.1,0.2505]
[1755235243671,3.337,4618.4,4618.1,0.2505]
[1755235243877,2.1653458,4618.2,4618.1,0.2505]
[1755235244455,2.6256458,4618.2,4618.1,0.2505]
[1755235247150,10.30087704,4618.2,4618.1,1e-08]
[1755235247337,2.16564532,4617.6,4617.3,0.01535151]
[1755235247586,15.8107814,4617.4,4617.3,0.01535151]
[1755235247756,26.03267706,4617.4,4617.3,0.01535151]
[1755235248187,9.04761662,4617.4,4617.3,1e-08]
[1755235248354,0.30916876,4617.3,4615.3,0.4877]
[1755235248689,13.64506044,4616.4,4615.3,0.4877]
[1755235248975,2.166384,4616.0,4615.3,0.4877]
[1755235249190,3.344,4615.9,4615.3,0.9354]
[1755235249343,3.344,4615.8,4614.9,0.9354]
[1755235249544,3.344,4615.8,4615.0,2.16684723]
[1755235249756,3.344,4615.8,4615.1,1.24562472]
[1755235250049,2.16618397,4616.5,4615.5,0.55]
[1755235250250,3.344,4616.4,4615.5,0.55]
[1755235250456,3.344,4616.4,4615.6,0.9354]
[1755235250671,2.16618604,4616.5,4615.6,0.9354]
[1755235250846,5.50919335,4616.4,4615.7,0.36519995]
[1755235251166,0.46049217,4616.3,4615.8,0.55]
[1755235251377,2.84801446,4616.9,4615.9,0.9354]
[1755235251378,3.343,4616.2,4615.9,0.9354]
[1755235251580,3.343,4616.1,4616.0,0.9354]
[1755235252083,3.343,4616.1,4615.4,0.55]
[1755235252491,3.343,4616.1,4615.4,2.71664793]
[1755235252784,0.46024235,4616.3,4615.9,0.108]
[1755235252951,3.343,4616.2,4615.9,0.5798]
[1755235253153,3.343,4616.2,4616.0,0.9073]
[1755235253553,3.343,4616.2,4616.0,0.4718]
[1755235253753,3.342,4616.1,4616.0,0.4355]
[1755235253990,3.342,4616.1,4616.0,0.9073]
[1755235254558,3.342,4616.1,4615.9,0.108]
[1755235254759,5.95073563,4616.1,4615.9,0.108]
[1755235254954,2.16637781,4616.0,4615.9,0.108]
[1755235255393,2.62611929,4616.0,4615.9,0.108]
[1755235255556,0.45974148,4616.0,4615.3,0.55]
[1755235255759,3.36907913,4616.1,4615.7,0.108]
[1755235255965,5.53542047,4616.1,4615.7,0.108]
[1755235256183,0.45974148,4616.0,4615.7,0.108]
[1755235256583,2.1662845,4616.2,4615.7,0.108]
[1755235256584,3.341,4615.9,4615.7,0.108]
[1755235256857,3.341,4615.9,4615.7,1.0153]
[1755235257187,2.16629382,4616.2,4615.7,0.108]
[1755235257392,3.79974148,4616.1,4615.8,0.9073]
[1755235257589,3.79974148,4616.1,4615.9,0.9073]
[1755235257901,3.34,4616.1,4615.9,0.9073]
[1755235258062,3.79974148,4616.1,4615.9,0.9073]
[1755235258261,0.45974148,4616.0,4615.9,0.4718]
[1755235258486,0.45974148,4616.0,4615.7,0.108]
[1755235258794,3.339,4615.9,4615.8,0.001]
[1755235259303,3.338,4615.9,4615.8,0.9083]
[1755235259669,0.45974148,4616.0,4615.8,0.9083]
[1755235259895,2.16623805,4616.3,4615.8,0.9083]
[1755235259896,3.338,4615.9,4615.8,0.4365]
[1755235260290,3.338,4615.9,4615.8,0.9865]
[1755235260602,3.338,4615.9,4615.8,1.4583]
[1755235260775,3.338,4616.0,4615.8,1.4583]
[1755235260971,0.45974148,4616.2,4615.9,1.4573]
[1755235261282,3.337,4616.3,4615.9,0.108]
[1755235261678,3.337,4616.3,4616.0,0.55]
[1755235263612,0.45974148,4616.4,4615.8,0.001]
[1755235263770,3.336,4616.2,4616.1,0.4718]
[1755235264175,3.336,4616.2,4615.8,0.001]
[1755235264589,2.32796825,4616.5,4615.9,1.0218]
[1755235264590,3.336,4616.1,4615.9,1.0218]
[1755235266580,3.2593851,4616.8,4615.9,1.0218]
[1755235266581,0.46021527,4616.4,4616.0,0.14583]
[1755235266806,0.1582223,4616.9,4616.1,1.47346542]
[1755235267021,1.19317646,4617.2,4616.8,0.55]
[1755235267384,1.63557646,4617.2,4616.5,0.55]
[1755235267589,1.63557646,4617.2,4616.5,2.16614318]
[1755235267798,1.63557646,4617.2,4616.9,0.55]
[1755235268183,1.63557646,4617.2,4616.8,0.55]
[1755235268377,1.63557646,4617.2,4616.8,2.71600148]
[1755235268598,1.63557646,4617.2,4616.9,0.55]
[1755235268804,1.63557646,4617.2,4617.0,0.55]
[1755235269111,1.63557646,4617.2,4617.0,2.71590708]
[1755235269112,1.19317646,4617.2,4617.0,2.71590708]
[1755235269515,1.19317646,4617.2,4617.0,0.55]
[1755235269818,1.63557646,4617.2,4616.8,0.55]
[1755235269979,1.63557646,4617.2,4616.8,2.715996]
[1755235270404,1.63557646,4617.2,4616.7,0.55]
[1755235270819,1.63557646,4617.2,4616.8,0.55]
[1755235271285,1.19317646,4617.2,4616.7,0.55]
[1755235271613,1.38324876,4617.1,4615.9,2.16641651]
[1755235271811,1.38324876,4617.1,4616.1,2.71633088]
[1755235272015,0.94084876,4617.1,4616.1,2.71633088]
[1755235272314,0.4424,4617.0,4616.3,0.55]
[1755235272614,1.65402522,4617.2,4616.6,2.16605425]
[1755235272780,1.19317646,4617.2,4616.9,0.55]
[1755235272983,3.337,4617.2,4616.9,0.55]
[1755235273179,0.46084876,4617.6,4617.1,0.55]
[1755235273515,0.46084876,4617.5,4617.2,0.9073]
[1755235273681,3.337,4617.6,4617.4,0.55]
[1755235274088,3.337,4617.6,4617.4,1.0218]
[1755235274325,3.337,4617.6,4617.4,3.18751242]
[1755235274733,0.002,4617.7,4617.6,2.16562716]
[1755235275326,0.002,4617.7,4617.6,3.73092716]
[1755235275627,0.002,4617.7,4617.6,2.82362716]
[1755235275998,0.002,4617.7,4617.6,0.658]
[1755235281597,16.29478476,4617.7,4617.6,0.108]
[1755235281797,2.16581382,4617.3,4616.4,2.16617667]
[1755235282035,2.16586778,4617.1,4616.2,2.16624878]
[1755235282331,2.1659178,4617.0,4616.2,2.16624878]
[1755235282719,5.93982351,4617.2,4616.1,2.63812258]
[1755235282930,0.63947235,4617.1,4616.3,2.16623085]
[1755235283110,2.63399072,4617.0,4615.9,2.16642474]
[1755235283310,2.63399072,4617.0,4616.1,2.16630132]
[1755235283519,0.441,4616.9,4615.9,2.166394]
[1755235283817,2.16601382,4616.8,4616.0,2.16636132]
[1755235284135,3.774,4616.7,4615.8,0.001]
[1755235284334,4.2289,4616.7,4615.8,0.001]
[1755235284634,2.16614991,4616.5,4615.8,0.001]
[1755235284796,2.6071059,4616.6,4615.8,0.551]
[1755235285002,2.16642474,4615.9,4615.8,0.551]
[1755235285212,0.441,4615.9,4615.8,0.001]
[1755235285538,2.60725242,4616.3,4615.8,0.001]
[1755235285744,0.441,4616.3,4615.8,0.001]
[1755235286435,0.441,4616.2,4615.8,0.001]
[1755235286734,0.63950059,4616.6,4615.9,0.55]
[1755235287422,5.94009356,4616.7,4615.9,0.55]
[1755235288432,2.16611404,4616.6,4615.9,0.55]
[1755235288807,3.774,4616.7,4615.9,0.55]
[1755235289613,3.774,4616.7,4615.9,2.71642271]
[1755235289836,3.774,4616.7,4615.9,0.55]
[1755235290239,5.94005976,4616.7,4615.9,2.71638157]
[1755235290444,2.16616288,4616.5,4615.8,0.001]
[1755235290944,2.16634599,4616.1,4615.8,0.001]
[1755235291151,2.64370098,4616.1,4615.8,0.001]
[1755235291325,0.441,4616.0,4615.8,0.001]
[1755235292214,3.439,4616.3,4615.8,0.001]
[1755235292742,0.55,4616.2,4615.8,0.001]